Workbook

Sheet r
B2: Valor del inventario | C2: 250000000
B5: Cuánto cuesta tener inventario guardado? | C5: Costo / gasto mensual | M5: Cuánto cuesta tener faltantes de inventario?
B6: Personal | C6: =6*500000*1.4 -> 4200000 | M6: Costo unitario: | N6: 9000
B7: Espacio físico | C7: =5000*200 -> 1000000 | M7: Probabilidad de que falte: | N7: 0.5
B8: Sistemas de información | C8: =250000 -> 250000 | D8: WMS | M8: Unidades: | N8: 10000
B9: Equipo de cómputo | C9: 50000
B10: Servicios básicos: luz, agua, etc. | C10: 500000 | N10: =N6*N7*N8 -> 45000000
B11: Limpieza | C11: 800000
B12: Vencimientos | C12: =0.03*$C$2/12 -> 625000
B13: Pierden | C13: =0.01*$C$2/12 -> 208333.3333
B14: Mermas o daños | C14: =0.02*$C$2/12 -> 416666.6667
B15: Seguros | C15: =1.5%*C2/12 -> 312500
B16: Papelería | C16: 100000
B18: Costos y gastos operación: | C18: =SUM(C6:C16) -> 8462500 | D18: =C18*12 -> 101550000
B20: Costo de la plata (Costo de capital) | C20: =4%*C2/12 -> 833333.3333 | D20: =C20*12 -> 10000000
B22: Total | D22: =SUM(D18:D20) -> 111550000
B23: Total / Valor de Inventario | D23: =D22/C2 -> 0.4462 | E23: Tasa de tener inventario

Sheet ABC
A1: Skus | B1: Consumo | C1: Proporción | D1: % Acumulado | E1: ABC
A2: 100 | B2: 100000 | C2: =B2/$B$102 -> 0.119938016 | D2: =C2 -> 0.119938016 | E2: =IF(D2<=80%, "A", IF(D2<=95%,"B","C")) -> A
A3: 94 | B3: 90000 | C3: =B3/$B$102 -> 0.1079442144 | D3: =D2+C3 -> 0.2278822305 | E3: =IF(D3<=80%, "A", IF(D3<=95%,"B","C")) -> A
A4: 6 | B4: 80000 | C4: =B4/$B$102 -> 0.09595041283 | D4: =D3+C4 -> 0.3238326433 | E4: A
A5: 9 | B5: 60000 | C5: =B5/$B$102 -> 0.07196280962 | D5: 0.3957954529 | E5: A
A6: 8 | B6: 60000 | C6: =B6/$B$102 -> 0.07196280962 | D6: 0.4677582625 | E6: A
A7: 7 | B7: 60000 | C7: =B7/$B$102 -> 0.07196280962 | D7: 0.5397210721 | E7: A
A8: 66 | B8: 60000 | C8: =B8/$B$102 -> 0.07196280962 | D8: 0.6116838818 | E8: A
A9: 93 | B9: 60000 | C9: =B9/$B$102 -> 0.07196280962 | D9: 0.6836466914 | E9: A
A10: 38 | B10: 60000 | C10: =B10/$B$102 -> 0.07196280962 | D10: 0.755609501 | E10: A
A11: 54 | B11: 4933 | C11: =B11/$B$102 -> 0.005916542331 | D11: 0.7615260433 | E11: A
A12: 90 | B12: 4864 | C12: =B12/$B$102 -> 0.0058337851 | D12: 0.7673598284 | E12: A
A13: 22 | B13: 4700 | C13: =B13/$B$102 -> 0.005637086754 | D13: 0.7729969152 | E13: A
A14: 18 | B14: 4697 | C14: =B14/$B$102 -> 0.005633488613 | D14: 0.7786304038 | E14: A
A15: 80 | B15: 4483 | C15: =B15/$B$102 -> 0.005376821259 | D15: 0.7840072251 | E15: A
A16: 97 | B16: 4474 | C16: =B16/$B$102 -> 0.005366026837 | D16: 0.7893732519 | E16: A
A17: 55 | B17: 4348 | C17: =B17/$B$102 -> 0.005214904937 | D17: 0.7945881568 | E17: A
A18: 33 | B18: 4229 | C18: =B18/$B$102 -> 0.005072178698 | D18: 0.7996603355 | E18: A
A19: 84 | B19: 4197 | C19: =B19/$B$102 -> 0.005033798533 | D19: 0.8046941341 | E19: B
A20: 47 | B20: 4196 | C20: =B20/$B$102 -> 0.005032599153 | D20: 0.8097267332 | E20: B
A21: 23 | B21: 4183 | C21: =B21/$B$102 -> 0.005017007211 | D21: 0.8147437404 | E21: B
A22: 95 | B22: 4148 | C22: =B22/$B$102 -> 0.004975028905 | D22: 0.8197187693 | E22: B
A23: 48 | B23: 4141 | C23: =B23/$B$102 -> 0.004966633244 | D23: 0.8246854026 | E23: B
A24: 32 | B24: 4138 | C24: =B24/$B$102 -> 0.004963035103 | D24: 0.8296484377 | E24: B
A25: 67 | B25: 4130 | C25: =B25/$B$102 -> 0.004953440062 | D25: 0.8346018777 | E25: B
A26: 30 | B26: 4034 | C26: =B26/$B$102 -> 0.004838299567 | D26: 0.8394401773 | E26: B
A27: 73 | B27: 4003 | C27: =B27/$B$102 -> 0.004801118782 | D27: 0.8442412961 | E27: B
A28: 46 | B28: 3994 | C28: =B28/$B$102 -> 0.00479032436 | D28: 0.8490316205 | E28: B
A29: 16 | B29: 3982 | C29: =B29/$B$102 -> 0.004775931798 | D29: 0.8538075523 | E29: B
A30: 40 | B30: 3971 | C30: =B30/$B$102 -> 0.004762738617 | D30: 0.8585702909 | E30: B
A31: 82 | B31: 3904 | C31: =B31/$B$102 -> 0.004682380146 | D31: 0.863252671 | E31: B
A32: 59 | B32: 3828 | C32: =B32/$B$102 -> 0.004591227254 | D32: 0.8678438983 | E32: B
A33: 36 | B33: 3594 | C33: =B33/$B$102 -> 0.004310572296 | D33: 0.8721544706 | E33: B
A34: 57 | B34: 3470 | C34: =B34/$B$102 -> 0.004161849156 | D34: 0.8763163197 | E34: B
A35: 45 | B35: 3441 | C35: =B35/$B$102 -> 0.004127067132 | D35: 0.8804433869 | E35: B
A36: 52 | B36: 3377 | C36: =B36/$B$102 -> 0.004050306801 | D36: 0.8844936937 | E36: B
A37: 56 | B37: 3348 | C37: =B37/$B$102 -> 0.004015524777 | D37: 0.8885092184 | E37: B
A38: 60 | B38: 3280 | C38: =B38/$B$102 -> 0.003933966926 | D38: 0.8924431854 | E38: B
A39: 63 | B39: 3260 | C39: =B39/$B$102 -> 0.003909979323 | D39: 0.8963531647 | E39: B
A40: 86 | B40: 3198 | C40: =B40/$B$102 -> 0.003835617753 | D40: 0.9001887824 | E40: B
A41: 51 | B41: 3114 | C41: =B41/$B$102 -> 0.003734869819 | D41: 0.9039236523 | E41: B
A42: 35 | B42: 3044 | C42: =B42/$B$102 -> 0.003650913208 | D42: 0.9075745655 | E42: B
A43: 13 | B43: 3009 | C43: =B43/$B$102 -> 0.003608934902 | D43: 0.9111835004 | E43: B
A44: 77 | B44: 2933 | C44: =B44/$B$102 -> 0.00351778201 | D44: 0.9147012824 | E44: B
A45: 11 | B45: 2801 | C45: =B45/$B$102 -> 0.003359463829 | D45: 0.9180607462 | E45: B
A46: 72 | B46: 2681 | C46: =B46/$B$102 -> 0.00321553821 | D46: 0.9212762844 | E46: B
A47: 91 | B47: 2679 | C47: =B47/$B$102 -> 0.00321313945 | D47: 0.9244894239 | E47: B
A48: 31 | B48: 2648 | C48: =B48/$B$102 -> 0.003175958665 | D48: 0.9276653825 | E48: B
A49: 61 | B49: 2556 | C49: =B49/$B$102 -> 0.00306561569 | D49: 0.9307309982 | E49: B
A50: 28 | B50: 2547 | C50: =B50/$B$102 -> 0.003054821268 | D50: 0.9337858195 | E50: B
A51: 98 | B51: 2516 | C51: =B51/$B$102 -> 0.003017640483 | D51: 0.93680346 | E51: B
A52: 78 | B52: 2419 | C52: =B52/$B$102 -> 0.002901300608 | D52: 0.9397047606 | E52: B
A53: 42 | B53: 2405 | C53: =B53/$B$102 -> 0.002884509286 | D53: 0.9425892699 | E53: B
A54: 26 | B54: 2399 | C54: =B54/$B$102 -> 0.002877313005 | D54: 0.9454665829 | E54: B
A55: 29 | B55: 2356 | C55: =B55/$B$102 -> 0.002825739658 | D55: 0.9482923225 | E55: B
A56: 49 | B56: 2282 | C56: =B56/$B$102 -> 0.002736985526 | D56: 0.9510293081 | E56: C
A57: 14 | B57: 2231 | C57: =B57/$B$102 -> 0.002675817138 | D57: 0.9537051252 | E57: C
A58: 53 | B58: 2189 | C58: =B58/$B$102 -> 0.002625443171 | D58: 0.9563305684 | E58: C
A59: 27 | B59: 2187 | C59: =B59/$B$102 -> 0.002623044411 | D59: 0.9589536128 | E59: C
A60: 5 | B60: 2000 | C60: =B60/$B$102 -> 0.002398760321 | D60: 0.9613523731 | E60: C
A61: 64 | B61: 1902 | C61: =B61/$B$102 -> 0.002281221065 | D61: 0.9636335942 | E61: C
A62: 41 | B62: 1717 | C62: =B62/$B$102 -> 0.002059335735 | D62: 0.9656929299 | E62: C
A63: 62 | B63: 1715 | C63: =B63/$B$102 -> 0.002056936975 | D63: 0.9677498669 | E63: C
A64: 43 | B64: 1703 | C64: =B64/$B$102 -> 0.002042544413 | D64: 0.9697924113 | E64: C
A65: 79 | B65: 1645 | C65: =B65/$B$102 -> 0.001972980364 | D65: 0.9717653916 | E65: C
A66: 34 | B66: 1576 | C66: =B66/$B$102 -> 0.001890223133 | D66: 0.9736556148 | E66: C
A67: 92 | B67: 1546 | C67: =B67/$B$102 -> 0.001854241728 | D67: 0.9755098565 | E67: =IF(D67<=80%, "A", IF(D67<=95%,"B","C")) -> C
A68: 65 | B68: 1494 | C68: =B68/$B$102 -> 0.00179187396 | D68: =D67+C68 -> 0.9773017305 | E68: C
A69: 12 | B69: 1303 | C69: =B69/$B$102 -> 0.001562792349 | D69: 0.9788645228 | E69: C
A70: 75 | B70: 1240 | C70: =B70/$B$102 -> 0.001487231399 | D70: 0.9803517542 | E70: C
A71: 39 | B71: 1214 | C71: =B71/$B$102 -> 0.001456047515 | D71: 0.9818078017 | E71: C
A72: 70 | B72: 1200 | C72: =B72/$B$102 -> 0.001439256192 | D72: 0.9832470579 | E72: C
A73: 19 | B73: 1177 | C73: =B73/$B$102 -> 0.001411670449 | D73: 0.9846587284 | E73: C
A74: 68 | B74: 1068 | C74: =B74/$B$102 -> 0.001280938011 | D74: 0.9859396664 | E74: C
A75: 20 | B75: 1061 | C75: =B75/$B$102 -> 0.00127254235 | D75: 0.9872122087 | E75: C
A76: 4 | B76: 1000 | C76: =B76/$B$102 -> 0.00119938016 | D76: 0.9884115889 | E76: C
A77: 15 | B77: 992 | C77: =B77/$B$102 -> 0.001189785119 | D77: 0.989601374 | E77: C
A78: 21 | B78: 968 | C78: =B78/$B$102 -> 0.001160999995 | D78: 0.990762374 | E78: C
A79: 71 | B79: 747 | C79: =B79/$B$102 -> 0.0008959369798 | D79: 0.991658311 | E79: C
A80: 50 | B80: 609 | C80: =B80/$B$102 -> 0.0007304225176 | D80: 0.9923887335 | E80: C
A81: 58 | B81: 609 | C81: =B81/$B$102 -> 0.0007304225176 | D81: 0.993119156 | E81: C
A82: 25 | B82: 603 | C82: =B82/$B$102 -> 0.0007232262367 | D82: 0.9938423823 | E82: C
A83: 44 | B83: 532 | C83: =B83/$B$102 -> 0.0006380702453 | D83: 0.9944804525 | E83: C
A84: 17 | B84: 529 | C84: =B84/$B$102 -> 0.0006344721048 | D84: 0.9951149246 | E84: C
A85: 24 | B85: 509 | C85: =B85/$B$102 -> 0.0006104845016 | D85: 0.9957254091 | E85: C
A86: 87 | B86: 487 | C86: =B86/$B$102 -> 0.0005840981381 | D86: 0.9963095072 | E86: C
A87: 83 | B87: 482 | C87: =B87/$B$102 -> 0.0005781012373 | D87: 0.9968876085 | E87: C
A88: 76 | B88: 458 | C88: =B88/$B$102 -> 0.0005493161134 | D88: 0.9974369246 | E88: C
A89: 69 | B89: 392 | C89: =B89/$B$102 -> 0.0004701570229 | D89: 0.9979070816 | E89: C
A90: 96 | B90: 332 | C90: =B90/$B$102 -> 0.0003981942132 | D90: 0.9983052758 | E90: C
A91: 10 | B91: 300 | C91: =B91/$B$102 -> 0.0003598140481 | D91: 0.9986650899 | E91: C
A92: 99 | B92: 297 | C92: =B92/$B$102 -> 0.0003562159076 | D92: 0.9990213058 | E92: C
A93: 37 | B93: 274 | C93: =B93/$B$102 -> 0.0003286301639 | D93: 0.999349936 | E93: C
A94: 88 | B94: 193 | C94: =B94/$B$102 -> 0.0002314803709 | D94: 0.9995814163 | E94: C
A95: 81 | B95: 121 | C95: =B95/$B$102 -> 0.0001451249994 | D95: 0.9997265413 | E95: C
A96: 3 | B96: 100 | C96: =B96/$B$102 -> 0.000119938016 | D96: 0.9998464793 | E96: C
A97: 74 | B97: 87 | C97: =B97/$B$102 -> 0.0001043460739 | D97: 0.9999508254 | E97: C
A98: 2 | B98: 20 | C98: =B98/$B$102 -> 2.398760321e-05 | D98: 0.999974813 | E98: C
A99: 89 | B99: 10 | C99: =B99/$B$102 -> 1.19938016e-05 | D99: 0.9999868068 | E99: C
A100: 85 | B100: 6 | C100: =B100/$B$102 -> 7.196280962e-06 | D100: 0.9999940031 | E100: C
A101: 1 | B101: 5 | C101: =B101/$B$102 -> 5.996900802e-06 | D101: 1 | E101: C
B102: =SUM(B2:B101) -> 833764 | C102: TOTAL
